Cogmind - Beta 12 @@@ ROGUE MODE // 2023.07.01 @ 01:33:38 Player: HexanyIves Result: Self-destructed Performance ------------- Evolutions (3) 1500 Regions Visited (5) 1000 Robots Destroyed (19) 95 Value Destroyed (406) 406 Prototype IDs (3) 60 Alien Tech Used (0) 0 Bonus (0) 0 TOTAL SCORE: 3061 Bonus ------- None Cogmind --------- Core Integrity 197/700 Matter 201/300 Energy 99/100 System Corruption 1% Temperature Cool (0) Movement Core (50) Location -7/Storage Parts ------- > --- POWER (1) -------- (None) > --- PROPULSION (4) --- Faulty Cooled Airjet > --- UTILITY (6) ------ Salvage Targeting Computer > --- WEAPON (2) ------- (None) > --- INVENTORY (5) ---- Ion Engine Small Storage Unit Rocket Launcher Peak State ------------ > --- POWER ------------ Light Ion Engine > --- PROPULSION ------- VTOL Module Xenon Bombardment Thruster Xenon Bombardment Thruster Xenon Bombardment Thruster > --- UTILITY ---------- Signal Interpreter Improved Terrain Scanner Salvage Targeting Computer > --- WEAPON ----------- Gauss Rifle Gauss Rifle > --- INVENTORY -------- Ion Engine Cooled Airjet VTOL Module Small Storage Unit Rocket Launcher [Rating: 30] Favorites ----------- Power Ion Engine Engine Ion Engine Propulsion VTOL Module Wheel Compact Wheel Hover Unit Aerolev Unit Flight Unit VTOL Module Utility Salvage Targeting Computer Device Seismic Detector Storage Large Storage Unit Processor Salvage Targeting Computer Weapon Medium Laser Energy Gun Medium Laser Ballistic Gun Gauss Rifle Launcher Mini Grenade Launcher Build | -11 -10 -9 -8 -7 -7 ------- Run | Jun Mat Mat Mat Fac Sto Slots Evolved 6 | . . 2 2 2 . Power . | . . . . . . Propulsion 2 | . . . 2 . . Utility 4 | . . 2 . 2 . Weapon . | . . . . . . Parts Attached 35 | 7 . 5 10 11 2 Power 3 | 1 . . 1 1 . Engine 3 | 1 . . 1 1 . Core . | . . . . . . Reactor . | . . . . . . Propulsion 14 | 2 . 1 4 5 2 Treads . | . . . . . . Leg . | . . . . . . Wheel 3 | 2 . 1 . . . Hover 3 | . . . 1 . 2 Flight 8 | . . . 3 5 . Utility 8 | 2 . 3 2 1 . Device 3 | 1 . 1 1 . . Storage 3 | 1 . 1 . 1 . Processor 2 | . . 1 1 . . Hackware . | . . . . . . Protection . | . . . . . . Artifact . | . . . . . . Weapon 10 | 2 . 1 3 4 . Energy Gun 4 | 2 . 1 1 . . Energy Cannon . | . . . . . . Ballistic Gun 3 | . . . . 3 . Ballistic Cannon . | . . . . . . Launcher 3 | . . . 2 1 . Special Weapon . | . . . . . . Impact Weapon . | . . . . . . Slashing Weapon . | . . . . . . Piercing Weapon . | . . . . . . Special Melee Weapon . | . . . . . . Unidentified Prototypes 3 | . . . 2 . 1 Corrupted Parts 1 | . . . 1 . . System Corruption 5 | . . . 5 . . Parts Lost 23 | . . 4 7 2 10 Power 2 | . . 1 . . 1 Propulsion 12 | . . 2 3 2 5 Utility 4 | . . . 2 . 2 Weapon 5 | . . 1 2 . 2 Highest Loss Streak 10 | . . 4 7 1 10 To Critical Strikes . | . . . . . . Average Slot Usage (%) 71 | . 100 73 62 69 45 Engine 6 | . 14 6 3 7 2 Wheel 10 | . 28 18 5 . . Hover 1 | . . . 1 3 1 Flight 8 | . . . 5 19 14 Device 10 | . 14 13 13 7 3 Storage 6 | . 14 11 6 . . Processor 9 | . . 5 12 15 13 Energy Gun 12 | . 28 19 13 . . Ballistic Gun 3 | . . . . 7 9 Launcher 2 | . . . 2 5 . Naked Turns . | . . . . . . Heaviest Build 30 | 15 15 30 27 14 12 Greatest Support 28 | 26 26 28 12 22 22 Greatest Overweight (x) 3 | . . 2 2 3 . Average Overweight (x) . | . . . 1 . . Largest Inventory Capacity 15 | 8 8 15 15 8 5 Average Capacity 9 | 7 8 14 11 5 5 Most Carried 11 | 5 7 11 11 5 5 Average Carried 6 | 2 5 8 8 4 4 Final Capacity 15 | 8 8 15 5 5 5 Final Carried 10 | 4 6 10 4 5 3 Class Distribution -------------------- 78% | Mutant 9% | Scavenger-Sprinter 6% | Sprinter 5% | Scavenger-Mutant Dominant Class ---------------- Mutant | -10/Materials Mutant | -9/Materials Mutant | -8/Materials Scavenger-Sprinter | -7/Factory Mutant | -7/Storage Resources | -11 -10 -9 -8 -7 -7 ----------- Run | Jun Mat Mat Mat Fac Sto Matter Collected 408 | 270 . 25 25 18 70 Remotely . | . . . . . . Salvage Created 575 | 156 . 315 56 48 . Parts 31 | 12 . 9 3 7 . Haulers Intercepted 1 | . . 1 . . . Recyclers Shooed 1 | 1 . . . . . Parts Field Recycled . | . . . . . . Retrieved Matter . | . . . . . . Parts Self-Destructed . | . . . . . . Prevented . | . . . . . . Kills | -11 -10 -9 -8 -7 -7 ------- Run | Jun Mat Mat Mat Fac Sto Combat Hostiles Destroyed 12 | . . 5 3 4 . Guns 5 | . . 5 . . . AOE 7 | . . . 3 4 . Classes Destroyed 7 | 2 . 4 1 . . Tunneler 5 | 5 . . . . . Hauler 1 | . . 1 . . . Recycler 1 | 1 . . . . . Swarmer 7 | . . . 3 4 . Grunt 2 | . . 2 . . . Duelist 1 | . . 1 . . . Sentry 2 | . . 2 . . . Best Kill Streak 4 | 4 . 3 3 4 . Combat Bots Only 4 | . . 3 3 4 . Max Kills in Single Turn 3 | 1 . 1 2 3 . Gunslinging . | . . . . . . Exploded 3 | . . . 2 3 . Melee . | . . . . . . Uniques/NPCs Destroyed . | . . . . . . Combat | -11 -10 -9 -8 -7 -7 -------- Run | Jun Mat Mat Mat Fac Sto Damage Taken 2597 | . 29 505 869 215 979 Core 961 | . . 105 353 74 429 Absorbed by Shields . | . . . . . . Core Remaining (%) 77 | 100 100 73 35 . . Volleys Fired 49 | 11 . 30 5 3 . Largest 2 | 2 . 2 2 2 . Hottest 115 | 100 . 100 115 58 . Shots Fired 81 | 22 . 47 6 6 . Gun 75 | 22 . 47 3 3 . Cannon . | . . . . . . Launcher 6 | . . . 3 3 . Special . | . . . . . . Kinetic 3 | . . . . 3 . Thermal 72 | 22 . 47 3 . . Explosive 3 | . . . . 3 . Electromagnetic 3 | . . . 3 . . Robot Hit Streak 12 | 5 . 11 12 1 . Robot Miss Streak 4 | 2 . 3 4 2 . Penetration Max . | . . . . . . Secondary Targets . | . . . . . . Shots Hit Robots 56 | 12 . 36 6 2 . Core Hits 33 | 7 . 13 6 7 . Critical Kills . | . . . . . . Critical Parts Destroyed . | . . . . . . Critical Strikes 2 | . . 1 1 . . Burn 2 | . . 1 1 . . Melee Attacks . | . . . . . . Impact . | . . . . . . Slashing . | . . . . . . Piercing . | . . . . . . Sneak Attacks . | . . . . . . Combat Hostiles . | . . . . . . Follow-up Attacks . | . . . . . . Damage Inflicted 1034 | 163 . 451 171 249 . Guns 677 | 163 . 451 29 34 . Cannons . | . . . . . . Explosions 357 | . . . 142 215 . Melee . | . . . . . . Ramming . | . . . . . . Kinetic 34 | . . . . 34 . Thermal 643 | 163 . 451 29 . . Explosive 215 | . . . . 215 . Electromagnetic 142 | . . . 142 . . Impact . | . . . . . . Slashing . | . . . . . . Piercing . | . . . . . . Highest Corruption 5 | . . . 5 . 1 Average Corruption 2 | . . . 5 . 1 Corruption Purged . | . . . . . . Corruption Blocked . | . . . . . . Effects 2 | . . . 2 . . Message Errors 1 | . . . 1 . . Matter Fused 1 | . . . 1 . . Overload Shots . | . . . . . . Overflow Damage . | . . . . . . Projectiles . | . . . . . . Explosions . | . . . . . . Melee . | . . . . . . Knockbacks . | . . . . . . Impact . | . . . . . . Kinetic . | . . . . . . Secondary . | . . . . . . Self-Inflicted Damage 38 | . . . 3 35 . Shots 2 | . . . 1 1 . Rammed . | . . . . . . Targets Rammed . | . . . . . . Kicked . | . . . . . . Crushed . | . . . . . . Highest Temperature 226 | 117 . 226 2 . 5 Average Temperature 78 | 54 . 94 2 . 5 Received Heat Transfer 690 | . . 150 189 9 342 Siege Activations . | . . . . . . Robots Corrupted . | . . . . . . Combat Hostiles . | . . . . . . Parts Fried . | . . . . . . Impact Corruptions . | . . . . . . Robots Melted . | . . . . . . Combat Hostiles . | . . . . . . Parts Melted 4 | . . 3 1 . . Heat Transferred 2040 | 481 . 1406 153 . . Parts Sabotaged . | . . . . . . Parts Stolen . | . . . . . . Parts Stripped . | . . . . . . Power Chain Reactions . | . . . . . . Missiles Intercepted . | . . . . . . Alert | -11 -10 -9 -8 -7 -7 ------- Run | Jun Mat Mat Mat Fac Sto Peak Influence 367 | 30 34 171 237 367 189 Initial 139 | . 19 14 72 107 139 Average 117 | 11 20 64 125 234 158 Maximum Alert Level 1 | . . . 1 1 . Low Security (%) 75 | 100 100 100 78 20 100 Level 1 24 | . . . 21 79 . Level 2 . | . . . . . . Level 3 . | . . . . . . Level 4 . | . . . . . . Level 5 . | . . . . . . High Security . | . . . . . . Max Security . | . . . . . . Squads Dispatched 4 | . . . 1 1 2 Investigation 1 | . . . . . 1 Extermination . | . . . . . . Reinforcement 3 | . . . 1 1 1 Assault . | . . . . . . Garrison . | . . . . . . Intercept . | . . . . . . Searches Triggered . | . . . . . . Construction Impeded . | . . . . . . Haulers Reinforced . | . . . . . . Active Scanning Responses . | . . . . . . Cargo Convoy Interrupts . | . . . . . . Stealth | -11 -10 -9 -8 -7 -7 --------- Run | Jun Mat Mat Mat Fac Sto Distress Signals 4 | . . . 2 1 1 Communications Jammed . | . . . . . . Distress Signals . | . . . . . . Times Spotted 61 | . 1 6 18 14 22 Peak Tracking Total 17 | . 1 4 12 8 17 Tactical Retreats 10 | . . 1 4 3 2 Traps | -11 -10 -9 -8 -7 -7 ------- Run | Jun Mat Mat Mat Fac Sto Traps Triggered 3 | . 1 . . 1 1 Indirectly . | . . . . . . Trap Hack Attempts . | . . . . . . Triggered . | . . . . . . Disarmed . | . . . . . . Reprogrammed . | . . . . . . Reused . | . . . . . . Traps Extracted . | . . . . . . Installed . | . . . . . . Triggered . | . . . . . . Machines | -11 -10 -9 -8 -7 -7 ---------- Run | Jun Mat Mat Mat Fac Sto Machines Disabled 2 | . . . . 2 . Max in Single Turn 1 | . . . . 1 . Garrison Access 1 | . . . . 1 . Machines Repaired . | . . . . . . Machines Sabotaged . | . . . . . . Overloaded Fab Kills . | . . . . . . Hacking | -11 -10 -9 -8 -7 -7 --------- Run | Jun Mat Mat Mat Fac Sto Machines Accessed 3 | . 1 . . 1 1 Terminals 2 | . 1 . . . 1 Fabricators . | . . . . . . Repair Stations . | . . . . . . Recycling Units . | . . . . . . Scanalyzers . | . . . . . . Garrison Access 1 | . . . . 1 . Total Hacks 4 | . 1 . . 1 2 Successful 1 | . . . . 1 . Failed 3 | . 1 . . . 2 Catastrophic 2 | . 1 . . . 1 Database Lockouts . | . . . . . . Manual . | . . . . . . Terminals 3 | . 1 . . . 2 Fabricators . | . . . . . . Repair Stations . | . . . . . . Recycling Units . | . . . . . . Scanalyzers . | . . . . . . Garrison Access 1 | . . . . 1 . Terminal Hacks . | . . . . . . Fabricator Hacks . | . . . . . . Repair Station Hacks . | . . . . . . Recycling Unit Hacks . | . . . . . . Scanalyzer . | . . . . . . Garrison Access Hacks 1 | . . . . 1 . Seal Access 1 | . . . . 1 . Unauthorized Hacks . | . . . . . . Terminals . | . . . . . . Fabricators . | . . . . . . Repair Stations . | . . . . . . Recycling Units . | . . . . . . Scanalyzers . | . . . . . . Garrison Access . | . . . . . . Data Cores Recovered . | . . . . . . Used . | . . . . . . Hacking Detections 2 | . 1 . . . 1 Full Trace Events 1 | . . . . . 1 Feedback Events . | . . . . . . Feedback Blocked . | . . . . . . Robot Schematics Acquired . | . . . . . . Robots Built . | . . . . . . Authchips . | . . . . . . Time . | . . . . . . Total Robot Build Rating . | . . . . . . Part Schematics Acquired . | . . . . . . Parts Built . | . . . . . . Authchips . | . . . . . . Time . | . . . . . . Total Part Build Rating . | . . . . . . Parts Repaired . | . . . . . . Time . | . . . . . . Parts Recycled . | . . . . . . Recycled Matter . | . . . . . . Retrieved Matter . | . . . . . . Retrieved Components . | . . . . . . Parts Scanalyzed . | . . . . . . Part Schematics Acquired . | . . . . . . Parts Damaged . | . . . . . . Bothacking | -11 -10 -9 -8 -7 -7 ------------ Run | Jun Mat Mat Mat Fac Sto Used RIF Installer . | . . . . . . Robots Hacked . | . . . . . . Non-combat . | . . . . . . Combat . | . . . . . . Robot Hacks Applied . | . . . . . . Relay Couplers Released . | . . . . . . Fabnet Peak Effective % . | . . . . . . Robots Rewired . | . . . . . . Allies Hacked . | . . . . . . Hacks Repelled . | . . . . . . Allies | -11 -10 -9 -8 -7 -7 -------- Run | Jun Mat Mat Mat Fac Sto Total Allies 12 | . . . . 12 . Largest Group 4 | . . . . 4 . Highest-Rated Group 113 | . . . . 113 . Highest-Rated Ally 31 | . . . . 31 . Total Orders . | . . . . . . Ally Attacks 17 | . . . . 17 . Total Damage 278 | . . . . 278 . Kills . | . . . . . . Allies Corrupted . | . . . . . . Allies Melted 2 | . . . . 2 . Intel | -11 -10 -9 -8 -7 -7 ------- Run | Jun Mat Mat Mat Fac Sto Robot Analysis Total . | . . . . . . Derelict Logs Recovered . | . . . . . . Drone Launches . | . . . . . . Drone Recoveries . | . . . . . . Exploration | -11 -10 -9 -8 -7 -7 ------------- Run | Jun Mat Mat Mat Fac Sto Turns Passed 1254 | 121 160 330 183 341 119 Spaces Moved 1460 | 77 174 219 145 533 312 Core 66 | 3 . . . 8 55 Treads . | . . . . . . Legs . | . . . . . . Wheels 544 | 74 174 219 77 . . Hover 93 | . . . 23 67 3 Flight 757 | . . . 45 458 254 Fastest Speed 28 | 50 90 90 32 28 29 Average Speed 66 | 88 90 104 97 47 37 Slowest Speed 275 | 90 90 120 120 275 60 Overloaded Moves . | . . . . . . Propulsion Burnouts . | . . . . . . Robots Hopped 23 | . . . . 1 22 Cave-ins Triggered . | . . . . . . Exploration Rate (%) 26 | 5 36 25 21 17 52 Regions Visited 5 Branch Regions 1 Pre-discovered Areas . | . . . . . . Known Exits Taken 2 | . . . 1 1 . Unknown Exits Taken 3 | 1 1 1 . . . Scrap Searched . | . . . . . . Spaces Dug . | . . . . . . Terrain Destroyed 10 | . . . . 10 . Melee . | . . . . . . Projectile . | . . . . . . AOE 10 | . . . . 10 . Terrain Rammed . | . . . . . . Walls Destroyed . | . . . . . . Machines Disabled . | . . . . . . Actions | -11 -10 -9 -8 -7 -7 --------- Run | Jun Mat Mat Mat Fac Sto Total 1647 | 109 177 273 181 615 292 Wait 70 | . . 8 14 48 . Move 1416 | 76 173 218 144 530 275 Hop 16 | . . . . 1 15 Pick Up 44 | 13 3 10 5 13 . Fast Attach . | . . . . . . Attach 28 | 7 . 5 9 5 2 Detach 1 | . . . . 1 . Swap 7 | . . . 1 6 . Drop 16 | 2 1 2 3 8 . Fire 49 | 11 . 30 5 3 . Melee . | . . . . . . Ram . | . . . . . . Kick . | . . . . . . Crush . | . . . . . . Escape Stasis . | . . . . . . Rewire . | . . . . . . Trap . | . . . . . . Miscellaneous . | . . . . . . Route ------- -11/Junkyard -10/Materials -9/Materials -8/Materials -7/Factory -7/Storage History --------- Turn | Location | Event 18 | -11/Junkyard | Discovered new exit (range 15) 122 | -11/Junkyard | Entered Materials 234 | -10/Materials | Discovered new exit (range 3) 282 | -10/Materials | Entered another Materials area 282 | -9/Materials | Evolved 2 slots: Utility x2 303 | -9/Materials | Build established: Mutant 549 | -9/Materials | Lost 4 parts (1p2n1w) 576 | -9/Materials | Discovered new exit (range 5) 612 | -9/Materials | Entered another Materials area 612 | -8/Materials | Evolved 2 slots: Propulsion x2 777 | -8/Materials | Core integrity fell below 50% 791 | -8/Materials | Discovered new exit (range 5) 793 | -8/Materials | Identified exit to Factory 795 | -8/Materials | Entered Factory 795 | -7/Factory | Evolved 2 slots: Utility x2 808 | -7/Factory | Lost 7 parts (3n2u2w) 1100 | -7/Factory | Discovered new exit (range 10) 1102 | -7/Factory | Identified exit to Storage 1136 | -7/Factory | Entered Storage 1225 | -7/Storage | Core integrity fell below 50% 1255 | -7/Storage | Self-destructed Last Messages --------------- 01204_ Xenon Bombardment Thruster destroyed. 01207_ R-06 Scavenger collects Corrupted Prototype Energy Cannon. 01210_ R-06 Scavenger destroyed. 01210_ K-01 Serf collects debris. 01211_ The unstable cave ceiling collapses. 01212_ U-05 Engineer lays Concrete. 01212_ Penetrated by Slug. 01212_ Gauss Rifle destroyed. 01215_ Slug penetrates Wall. 01215_ Component Storage disabled. 01222_ Slug penetrates Wall. 01223_ Xenon Bombardment Thruster destroyed. 01226_ Identified Cld. Airjet. 01226_ Malfunction: Energy drain (-17). 01227_ Signal Interpreter destroyed. 01228_ Slug penetrates Wall. 01229_ Gravmag System destroyed. 01231_ K-01 Serf collects debris. 01234_ K-01 Serf destroyed. 01247_ Acquired 70 matter. Map ----- +----------------------------------------------------+ | ??# ?????## # #??? | | ??# """" ## # #??? | | ??# ?# ?# #??? | | ###? ???########### ##?? | | = ####+############### #?? | | *%! #?? | | == #?? | | #?? | | #################### #?? | | ##########???????????## ##?? | | #????????????#gg #??? | | " "" #????######??# #??? | | """"" ##???#![= ??# #??? | | """"" #???#[[ ?# #??? | | #????#[[ ?# #??? | | ###+########### # o#??? | | ?# + # # #??? | | ?# # # + #??? | | # # """" # """"" # #??? | | # # "??????# """"" # #??? | | + + "??????# """"" # #??? | | # # "??????# + #??? | | # # "?????# ### #??? | | ?# # "????########??# #??? | | ?# # ?????????????# #??? | | ## #######????????????#@#??? | | #??????????????????# #??? | | #??????????????????# #??? | | #??????????????????#+###? | | +#####??????????????????# T #? | | +??????????????????# #? | | #??????????????????# #? | | """ #??????????????????# = #? | | """ #??????????????????#!= #? | | """ #??????????????????#! #? | | #??????????????????# #? | | #??????????????????## ##? | | #???????????????????###?? | | #####????????????????????????? | | ?????????????????????????????? | | ?????????????????????????????? | | ?????????????????????????????? | | ?????????????????????????????? | | ?????????????????????????????? | | ?????????????????????????????? | | ?????????????????????????????? | | ?????????????????????????????? | | ?????????????????????????????? | | ?????????????????????????????? | | ?????????????????????????????? | +----------------------------------------------------+ Best States ------------- Heat Dissipation 41 Energy Generation 14 Energy Capacity 280 Matter Stores 300 Matter Capacity 300 Sight Range 16 Terrain Scan Range 16 Terrain Scan Density 10 Evasion (%) 64 Salvage Targeting 1 Item Schematics ----------------- None Robot Schematics ------------------ None Fabricated ------------ Nothing Alien Tech Used ----------------- None Achievements -------------- None Challenges ------------ None Game ------ Seed SurgeSupersonicScreen Manual? 0 Play Time 00:19:47 Cumulative 41.4 hours Start 2023.07.01 @ 01:16:59 End 2023.07.01 @ 01:33:38 Sessions 1 Manual Loads 0 Difficulty Rogue Special Mode None Game No. 60 Rogue 60 Adventurer 0 Explorer 0 Win Type - Total 0 Types 0/0/0/0/0/0/0/0/0 Lore% 39 Gallery% 44 Achievement% 33 Wizard Run 0 Options --------- ASCII 0 Keyboard 0 Movement Numpad Keybinds 0 Fullscreen 1 Font 12/Smallcaps Map View 83x54 Tactical HUD 1 Map Filters NONE Filters NONE Steam 1 RUN: a8fc03f3-2848-4cff-affe-f5beeeaa8868